lending/lending_fUSD_20240512
["ID","MTS","AMOUNT","RATE_DAILY","PERIOD"]
[326853024,1715512247614,-2121.64818798,0.00012979,21]
[326853025,1715512247623,-371.14877705,0.00012979,10]
[326853026,1715512247633,-885.37,0.00012979,9]
[326853027,1715512247643,-2849.55,0.00012979,6]
[326853028,1715512247653,-885.37,0.00012979,10]
[326853029,1715512247662,-1036.58,0.00012979,3]
[326853030,1715512248185,-500.0,0.00012979,2]
[326853031,1715512248221,-885.37,0.00012979,11]
[326853032,1715512248245,-2849.55,0.00012979,7]
[326853033,1715512248256,-500.0,0.00012979,3]
[326853034,1715512248266,-885.37,0.00012979,12]
[326853035,1715512248276,-2849.55,0.00012979,8]
[326853036,1715512248286,-1036.58,0.00012979,4]
[326853037,1715512248296,-500.0,0.00012979,4]
[326853038,1715512248305,-885.37,0.00012979,13]
[326853039,1715512248315,-2849.55,0.00012979,9]
[326853040,1715512248325,-1036.58,0.00012979,5]
[326853041,1715512248334,-519.90320601,0.00012979,5]
[326853042,1715512248344,-885.37,0.00012979,14]
[326853043,1715512248353,-2849.55,0.00012979,10]
[326853044,1715512248363,-1036.58,0.00012979,6]
[326853045,1715512248373,-500.0,0.00012979,2]
[326853046,1715512248382,-2821.88,0.00012979,19]
[326853047,1715512248392,-457.97050014,0.00012979,12]
[326853048,1715512248403,-2849.55,0.00012979,11]
[326853049,1715512248412,-885.37,0.00012979,15]
[326853050,1715512248422,-2821.88,0.00012979,20]
[326853051,1715512248431,-2849.55,0.00012979,12]
[326853052,1715512248440,-520.57915978,0.00012979,3]
[326853053,1715512248449,-1036.58,0.00012979,7]
[326853054,1715512248459,-2821.88,0.00012979,21]
[326853055,1715512248468,-885.37,0.00012979,16]
[326853056,1715512248477,-2849.55,0.00012979,13]
[326853057,1715512248486,-885.37,0.00012979,17]
[326853058,1715512248496,-2821.88,0.00012979,21]
[326853059,1715512248505,-7601.05,0.00012979,2]
[326853060,1715512248515,-2849.55,0.00012979,14]
[326853061,1715512248527,-2821.88,0.00012979,21]
[326853062,1715512248536,-885.37,0.00012979,18]
[326853063,1715512248546,-7601.05,0.00012979,3]
[326853064,1715512248555,-1036.58,0.00012979,8]
[326853065,1715512248566,-2849.55,0.00012979,15]
[326853066,1715512248575,-885.37,0.00012979,19]
[326853067,1715512248584,-2821.88,0.00012979,21]
[326853068,1715512248594,-7601.05,0.00012979,4]
[326853069,1715512248606,-1036.58,0.00012979,9]
[326853070,1715512248615,-885.37,0.00012979,20]
[326853071,1715512248625,-2849.55,0.00012979,16]
[326853072,1715512248634,-2821.89019502,0.00012979,21]
[326853073,1715512248643,-7601.05,0.00012979,5]
[326853074,1715512248652,-5000.0,0.00012979,2]
[326853075,1715512248662,-500.0,0.00012979,13]
[326853076,1715512248671,-7601.05,0.00012979,6]
[326853077,1715512248681,-885.37,0.00012979,21]
[326853078,1715512248690,-5000.0,0.00012979,3]
[326853079,1715512248699,-1036.58,0.00012979,10]
[326853080,1715512248709,-500.0,0.00012979,2]
[326853081,1715512248719,-500.0,0.00012979,14]
[326853082,1715512248728,-2849.55,0.00012979,17]
[326853083,1715512248738,-7601.05,0.00012979,7]
[326853084,1715512248748,-885.37,0.00012979,21]
[326853085,1715512248757,-500.0,0.00012979,3]
[326853086,1715512248767,-5000.0,0.00012979,4]
[326853087,1715512248776,-1036.58,0.00012979,11]
[326853088,1715512248786,-500.0,0.00012979,15]
[326853089,1715512248795,-2849.55,0.00012979,18]
[326853090,1715512248804,-7601.05,0.00012979,8]
[326853091,1715512248814,-885.37,0.00012979,21]
[326853092,1715512248824,-500.0,0.00012979,4]
[326853093,1715512248833,-5000.0,0.00012979,5]
[326853094,1715512248843,-1036.58,0.00012979,12]
[326853095,1715512248853,-2849.55,0.00012979,19]
[326853096,1715512248863,-500.0,0.00012979,16]
[326853097,1715512248872,-7601.05,0.00012979,9]
[326853098,1715512248882,-885.37,0.00012979,21]
[326853099,1715512248892,-500.0,0.00012979,5]
[326853100,1715512248902,-5000.0,0.00012979,6]
[326853101,1715512248911,-500.0,0.00012979,2]
[326853102,1715512248921,-1036.58,0.00012979,13]
[326853103,1715512248931,-2849.55,0.00012979,20]
[326853104,1715512248941,-7601.05,0.00012979,10]
[326853105,1715512248950,-404.73433726,0.00012979,17]
[326853106,1715512248960,-164.40198896,0.00012979,3]
[326853107,1715512248969,-500.0,0.00012979,6]
[326853108,1715512248979,-2849.55,0.00012979,21]
[326853109,1715512248989,-5000.0,0.00012979,7]
[326853110,1715512248999,-7601.05,0.00012979,11]
[326853111,1715512249008,-500.0,0.00012979,7]
[326853112,1715512249018,-885.38232572,0.00012979,21]
[326853113,1715512249027,-2988.06,0.00012979,2]
[326853114,1715512249037,-1036.58,0.00012979,14]
[326853115,1715512249046,-2849.55,0.00012979,21]
[326853116,1715512249056,-3092.6,0.00012979,2]
[326853117,1715512249066,-7601.05,0.00012979,12]
[326853118,1715512249075,-5000.0,0.00012979,8]
[326853119,1715512249084,-2988.06,0.00012979,3]
[326853120,1715512249093,-1036.58,0.00012979,15]
[326853121,1715512249103,-2849.55,0.00012979,21]
[326853122,1715512249113,-3092.6,0.00012979,3]
[326853123,1715512249122,-5000.0,0.00012979,9]
[326853124,1715512249131,-7601.05,0.00012979,13]
[326853125,1715512249140,-500.0,0.00012979,8]
[326853126,1715512249150,-1036.58,0.00012979,16]
[326853127,1715512249159,-2988.06,0.00012979,4]
[326853128,1715512249169,-2849.55,0.00012979,21]
[326853129,1715512249178,-3092.6,0.00012979,4]
[326853130,1715512249188,-500.0,0.00012979,2]
[326853131,1715512249197,-7601.05,0.00012979,14]
[326853132,1715512249207,-1013.91,0.00012979,2]
[326853133,1715512249216,-500.0,0.00012979,9]
[326853134,1715512249225,-1036.58,0.00012979,17]
[326853135,1715512249234,-500.0,0.00012979,2]
[326853136,1715512249244,-2988.06,0.00012979,5]
[326853137,1715512249253,-2849.6508283,0.00012979,21]
[326853138,1715512249262,-3092.6,0.00012979,5]
[326853139,1715512249271,-500.0,0.00012979,3]
[326853140,1715512249280,-1013.91,0.00012979,3]
[326853141,1715512249290,-5000.0,0.00012979,10]
[326853142,1715512249299,-500.0,0.00012979,10]
[326853143,1715512249308,-1036.58,0.00012979,18]
[326853144,1715512249319,-500.0,0.00012979,3]
[326853145,1715512249328,-2988.06,0.00012979,6]
[326853146,1715512249338,-3092.6,0.00012979,6]
[326853147,1715512249347,-1013.91,0.00012979,4]
[326853148,1715512249356,-7601.05,0.00012979,15]
[326853149,1715512249366,-500.0,0.00012979,4]
[326853150,1715512249376,-500.0,0.00012979,11]
[326853151,1715512249385,-3890.17242168,0.00012979,11]
[326853152,1715512249395,-1036.58,0.00012979,19]
[326853153,1715512249405,-2988.06,0.00012979,7]
[326853154,1715512249414,-500.0,0.00012979,4]
[326853155,1715512249424,-3092.6,0.00012979,7]
[326853156,1715512249434,-1013.91,0.00012979,5]
[326853157,1715512249444,-7601.05,0.00012979,16]
[326853158,1715512249453,-500.0,0.00012979,12]
[326853159,1715512249463,-500.0,0.00012979,5]
[326853160,1715512249474,-1036.58,0.00012979,20]
[326853161,1715512249484,-2988.06,0.00012979,8]
[326853162,1715512249494,-589.68604386,0.00012979,5]
[326853163,1715512249504,-3092.6,0.00012979,8]
[326853164,1715512249514,-500.0,0.00012979,2]
[326853165,1715512249528,-1013.91,0.00012979,6]
[326853166,1715512249538,-500.0,0.00012979,6]
[326853167,1715512249548,-7601.05,0.00012979,17]
[326853168,1715512249557,-500.0,0.00012979,13]
[326853169,1715512249568,-1036.58,0.00012979,21]
[326853170,1715512249578,-500.0,0.00012979,2]
[326853171,1715512249587,-3092.6,0.00012979,9]
[326853172,1715512249599,-2988.06,0.00012979,9]
[326853173,1715512249609,-500.0,0.00012979,3]
[326853174,1715512249619,-1013.91,0.00012979,7]
[326853175,1715512249628,-500.0,0.00012979,7]
[326853176,1715512249638,-500.0,0.00012979,14]
[326853177,1715512249647,-7601.05,0.00012979,18]
[326853178,1715512249657,-1036.58,0.00012979,21]
[326853179,1715512249666,-500.0,0.00012979,3]
[326853180,1715512249675,-2988.06,0.00012979,10]
[326853181,1715512249684,-3092.6,0.00012979,10]
[326853182,1715512249694,-500.0,0.00012979,2]
[326853183,1715512249704,-500.0,0.00012979,4]
[326853184,1715512249713,-500.0,0.00012979,8]
[326853185,1715512249723,-7601.05,0.00012979,19]
[326853186,1715512249732,-500.0,0.00012979,15]
[326853187,1715512249741,-1036.58,0.00012979,21]
[326853188,1715512249751,-500.0,0.00012979,4]
[326853189,1715512249760,-2988.06,0.00012979,11]
[326853190,1715512249769,-3092.6,0.00012979,11]
[326853191,1715512249778,-500.0,0.00012979,3]
[326853192,1715512249787,-500.0,0.00012979,5]
[326853193,1715512249797,-500.0,0.00012979,9]
[326853194,1715512249806,-1013.91,0.00012979,8]
[326853195,1715512249815,-7601.05,0.00012979,20]
[326853196,1715512249824,-500.0,0.00012979,16]
[326853197,1715512249833,-1036.58,0.00012979,21]
[326853198,1715512249843,-500.0,0.00012979,5]
[326853199,1715512249852,-2988.06,0.00012979,12]
[326853200,1715512249861,-3092.6,0.00012979,12]
[326853201,1715512249870,-528.74235154,0.00012979,4]
[326853202,1715512249879,-500.0,0.00012979,6]
[326853203,1715512249889,-500.0,0.00012979,10]
[326853204,1715512249898,-1013.91,0.00012979,9]
[326853205,1715512249908,-7601.05,0.00012979,21]
[326853206,1715512249917,-500.0,0.00012979,17]
[326853207,1715512249926,-2988.06,0.00012979,13]
[326853208,1715512249935,-3092.6,0.00012979,13]
[326853209,1715512249944,-500.0,0.00012979,11]
[326853210,1715512249953,-500.0,0.00012979,7]
[326853211,1715512249962,-1013.91,0.00012979,10]
[326853212,1715512249971,-7601.05,0.00012979,21]
[326853213,1715512249980,-2988.06,0.00012979,14]
[326853214,1715512249989,-500.0,0.00012979,6]
[326853215,1715512249999,-3092.6,0.00012979,14]
[326853216,1715512250008,-1013.91,0.00012979,11]
[326853217,1715512250017,-500.0,0.00012979,12]
[326853218,1715512250026,-500.0,0.00012979,8]
[326853219,1715512250035,-7601.05,0.00012979,21]
[326853220,1715512250044,-2988.06,0.00012979,15]
[326853221,1715512250054,-500.0,0.00012979,7]
[326853222,1715512250063,-3092.6,0.00012979,15]
[326853223,1715512250072,-500.0,0.00012979,13]
[326853224,1715512250081,-6249.41,0.00012979,2]
[326853225,1715512250090,-500.0,0.00012979,9]
[326853226,1715512250099,-7601.05,0.00012979,21]
[326853227,1715512250108,-500.0,0.00012979,8]
[326853228,1715512250118,-2988.06,0.00012979,16]
[326853229,1715512250127,-3092.6,0.00012979,16]
[326853230,1715512250136,-500.0,0.00012979,14]
[326853231,1715512250145,-1013.91,0.00012979,12]
[326853232,1715512250154,-6249.41,0.00012979,3]
[326853233,1715512250163,-500.0,0.00012979,10]
[326853234,1715512250173,-7601.23482945,0.00012979,21]
[326853235,1715512250182,-500.0,0.00012979,9]
[326853236,1715512250191,-2988.06,0.00012979,17]
[326853237,1715512250200,-3092.6,0.00012979,17]
[326853238,1715512250210,-500.0,0.00012979,15]
[326853239,1715512250219,-500.0,0.00012979,2]
[326853240,1715512250229,-6249.41,0.00012979,4]
[326853241,1715512250239,-500.0,0.00012979,11]
[326853242,1715512250249,-500.0,0.00012979,10]
[326853243,1715512250258,-2988.06,0.00012979,18]
[326853244,1715512250268,-500.0,0.00012979,16]
[326853245,1715512250278,-500.0,0.00012979,3]
[326853246,1715512250287,-6249.41,0.00012979,5]
[326853247,1715512250296,-1013.91,0.00012979,13]
[326853248,1715512250307,-3092.6,0.00012979,18]
[326853249,1715512250316,-500.0,0.00012979,12]
[326853250,1715512250326,-500.0,0.00012979,11]
[326853251,1715512250335,-2988.06,0.00012979,19]
[326853252,1715512250344,-2591.1,0.00012979,2]
[326853253,1715512250353,-500.0,0.00012979,4]
[326853254,1715512250363,-500.0,0.00012979,17]
[326853255,1715512250372,-6249.41,0.00012979,6]
[326853256,1715512250382,-3092.6,0.00012979,19]
[326853257,1715512250391,-1013.91,0.00012979,14]
[326853258,1715512250401,-500.0,0.00012979,13]
[326853259,1715512250411,-500.0,0.00012979,12]
[326853260,1715512250420,-2988.06,0.00012979,20]
[326853261,1715512250429,-2591.1,0.00012979,3]
[326853262,1715512250439,-500.0,0.00012979,5]
[326853263,1715512250448,-500.0,0.00012979,18]
[326853264,1715512250457,-1013.91,0.00012979,15]
[326853265,1715512250467,-500.0,0.00012979,2]
[326853266,1715512250476,-6249.41,0.00012979,7]
[326853267,1715512250485,-3092.6,0.00012979,20]
[326853268,1715512250494,-327.38532521,0.00012979,14]
[326853269,1715512250503,-500.0,0.00012979,13]
[326853270,1715512250513,-2988.06,0.00012979,21]
[326853271,1715512250529,-500.0,0.00012979,6]
[326853272,1715512250539,-500.0,0.00012979,19]
[326853273,1715512250548,-2591.1,0.00012979,4]
[326853274,1715512250559,-1013.91,0.00012979,16]
[326853275,1715512250570,-500.0,0.00012979,3]
[326853276,1715512250580,-6249.41,0.00012979,8]
[326853277,1715512250589,-3092.6,0.00012979,21]
[326853278,1715512250600,-500.0,0.00012979,14]
[326853279,1715512250609,-2988.06,0.00012979,21]
[326853280,1715512250619,-500.0,0.00012979,7]
[326853281,1715512250628,-284.13053205,0.00012979,20]
[326853282,1715512250637,-2591.1,0.00012979,5]
[326853283,1715512250647,-500.0,0.00012979,4]
[326853284,1715512250656,-1013.91,0.00012979,17]
[326853285,1715512250666,-3092.6,0.00012979,21]
[326853286,1715512250675,-500.0,0.00012979,15]
[326853287,1715512250684,-990.31,0.00012979,2]
[326853288,1715512250694,-500.0,0.00012979,8]
[326853289,1715512250703,-2988.06,0.00012979,21]
[326853290,1715512250712,-6249.41,0.00012979,9]
[326853291,1715512250721,-2591.1,0.00012979,6]
[326853292,1715512250731,-500.0,0.00012979,5]
[326853293,1715512250740,-1013.91,0.00012979,18]
[326853294,1715512250749,-3092.6,0.00012979,21]
[326853295,1715512250758,-500.0,0.00012979,2]
[326853296,1715512250767,-500.0,0.00012979,16]
[326853297,1715512250776,-2988.06,0.00012979,21]
[326853298,1715512250785,-500.0,0.00012979,9]
[326853299,1715512250795,-990.31,0.00012979,3]
[326853300,1715512250804,-6249.41,0.00012979,10]
[326853301,1715512250813,-500.0,0.00012979,6]
[326853302,1715512250822,-1013.91,0.00012979,19]
[326853303,1715512250831,-500.0,0.00012979,3]
[326853304,1715512250840,-3092.6,0.00012979,21]
[326853305,1715512250849,-500.0,0.00012979,17]
[326853306,1715512250858,-2591.1,0.00012979,7]
[326853307,1715512250868,-990.31,0.00012979,4]
[326853308,1715512250877,-2988.28131327,0.00012979,21]
[326853309,1715512250886,-500.0,0.00012979,7]
[326853310,1715512250896,-6249.41,0.00012979,11]
[326853311,1715512250905,-1013.91,0.00012979,20]
[326853312,1715512250915,-3092.7662383,0.00012979,21]
[326853313,1715512250924,-500.0,0.00012979,4]
[326853314,1715512250934,-500.0,0.00012979,18]
[326853315,1715512250943,-990.31,0.00012979,5]
[326853316,1715512250952,-2591.1,0.00012979,8]
[326853317,1715512250962,-514.41548106,0.00012979,2]
[326853318,1715512250971,-6249.41,0.00012979,12]
[326853319,1715512250980,-1013.91,0.00012979,21]
[326853320,1715512250990,-500.0,0.00012979,10]
[326853321,1715512250999,-500.0,0.00012979,5]
[326853322,1715512251009,-500.0,0.00012979,8]
[326853323,1715512251018,-500.0,0.00012979,19]
[326853324,1715512251027,-990.31,0.00012979,6]
[326853325,1715512251037,-2591.1,0.00012979,9]
[326853326,1715512251046,-6249.41,0.00012979,13]
[326853327,1715512251055,-505.64145653,0.00012979,11]
[326853328,1715512251064,-1013.91,0.00012979,21]
[326853329,1715512251074,-500.0,0.00012979,6]
[326853330,1715512251083,-15906.98,0.00012979,2]
[326853331,1715512251092,-534.7,0.00012979,20]
[326853332,1715512251102,-990.31,0.00012979,7]
[326853333,1715512251111,-2591.1,0.00012979,10]
[326853334,1715512251120,-6249.41,0.00012979,14]
[326853335,1715512251129,-1013.91,0.00012979,21]
[326853336,1715512251138,-534.06638419,0.00012979,7]
[326853337,1715512251147,-15906.98,0.00012979,3]
[326853338,1715512251156,-500.0,0.00012979,9]
[326853339,1715512251165,-990.31,0.00012979,8]
[326853340,1715512251174,-500.0,0.00012979,2]
[326853341,1715512251184,-2591.1,0.00012979,11]
[326853342,1715512251193,-6249.41,0.00012979,15]
[326853343,1715512251202,-1013.91,0.00012979,21]
[326853344,1715512251211,-2324.37,0.00012979,2]
[326853345,1715512251221,-500.0,0.00012979,10]
[326853346,1715512251230,-15906.98,0.00012979,4]
[326853347,1715512251239,-500.0,0.00012979,3]
[326853348,1715512251249,-990.31,0.00012979,9]
[326853349,1715512251258,-2591.1,0.00012979,12]
[326853350,1715512251267,-1013.99506612,0.00012979,21]
[326853351,1715512251277,-6249.41,0.00012979,16]
[326853352,1715512251286,-2324.37,0.00012979,3]
[326853353,1715512251296,-500.0,0.00012979,11]
[326853354,1715512251305,-15906.98,0.00012979,5]
[326853355,1715512251314,-990.31,0.00012979,10]
[326853356,1715512251323,-2591.1,0.00012979,13]
[326853357,1715512251332,-6249.41,0.00012979,17]
[326853358,1715512251342,-500.0,0.00012979,4]
[326853359,1715512251351,-2324.37,0.00012979,4]
[326853360,1715512251361,-500.0,0.00012979,12]
[326853361,1715512251370,-990.31,0.00012979,11]
[326853362,1715512251379,-15906.98,0.00012979,6]
[326853363,1715512251389,-2591.1,0.00012979,14]
[326853364,1715512251399,-2324.37,0.00012979,5]
[326853365,1715512251408,-6249.41,0.00012979,18]
[326853366,1715512251418,-500.0,0.00012979,13]
[326853367,1715512251428,-990.31,0.00012979,12]
[326853368,1715512251437,-4124.23326496,0.00012979,2]
[326853369,1715512253390,-631.93,0.00012977,2]
[326853373,1715512683708,-200.0,0.00011929,2]
[326853374,1715512683746,-882.73292549,0.00011946,2]
[326853375,1715512683771,-166.38,0.00011947,2]
[326853376,1715512683793,-155.0,0.00011963,2]
[326853377,1715512683817,-250.0,0.00011965,2]
[326853378,1715512683840,-2345.88707451,0.00011969,2]
[326853379,1715512684641,-4000.0,0.00011969,2]
[326853380,1715512685653,-4000.0,0.00011969,2]
[326853393,1715513432339,-882.73292549,0.0001133,2]
[326853394,1715513432350,-155.0,0.00011331,2]
[326853395,1715513432364,-237.10219524,0.00011331,2]
[326853396,1715513432378,-608.26,0.00011546,2]
[326853397,1715513432389,-4000.0,0.0001155,3]
[326853398,1715513432402,-250.0,0.00011583,2]
[326853399,1715513432415,-250.0,0.00011609,2]
[326853400,1715513432426,-155.9132,0.00011625,2]
[326853401,1715513432438,-150.0,0.0001164,2]
[326853402,1715513432456,-2326.98044609,0.00011725,2]
[326853403,1715513432573,-668.1020005,0.00011725,2]
[326853404,1715513432587,-2870.0948315,0.00011725,2]
[326853405,1715513432601,-782.70272191,0.00011725,2]
[326853406,1715513432612,-489.73,0.00011741,2]
[326853407,1715513432624,-150.99,0.00011741,2]
[326853408,1715513432636,-510.27,0.00011924,2]
[326853409,1715513432647,-152.51,0.00011945,2]
[326853410,1715513432659,-11680.52400416,0.00011969,2]
[326853411,1715513432671,-180.05314935,0.00011969,2]
[326853412,1715513432683,-181.34,0.00011977,2]
[326853413,1715513432695,-868.75,0.00012041,2]
[326853414,1715513432707,-419.8,0.00012041,2]
[326853415,1715513432718,-415.08,0.00012041,2]
[326853416,1715513432730,-868.75,0.00012041,2]
[326853417,1715513432742,-868.75,0.00012041,2]
[326853418,1715513432754,-415.08,0.00012041,2]
[326853419,1715513432766,-868.75,0.00012041,2]
[326853420,1715513432778,-415.08,0.00012041,2]
[326853421,1715513432789,-415.08,0.00012041,2]
[326853422,1715513432801,-868.75,0.00012041,2]
[326853423,1715513432814,-868.75,0.00012041,2]
[326853424,1715513432825,-415.08,0.00012041,2]
[326853425,1715513432837,-415.08,0.00012041,2]
[326853426,1715513432849,-868.75,0.00012041,2]
[326853427,1715513432861,-426.82,0.00012178,2]
[326853428,1715513432872,-150.0,0.00012178,2]
[326853429,1715513432884,-672.32148494,0.00012178,2]
[326853430,1715513432900,-44.86851506,0.00012178,2]
[326853431,1715513432911,-165.08,0.00012178,2]
[326853432,1715513432924,-707.21,0.00012178,2]
[326853433,1715513432935,-150.0,0.00012178,2]
[326853434,1715513432947,-163.3,0.00012178,2]
[326853435,1715513432959,-150.0,0.00012178,2]
[326853436,1715513432970,-163.3,0.00012178,2]
[326853437,1715513432983,-178.45,0.00012318,2]
[326853438,1715513432995,-150.0,0.00012493,2]
[326853439,1715513433007,-523.5,0.00012493,2]
[326853440,1715513433019,-150.0,0.00012493,2]
[326853441,1715513433031,-150.0,0.00012493,2]
[326853442,1715513433042,-300.0,0.00012493,2]
[326853443,1715513433055,-523.5,0.00012493,2]
[326853444,1715513433066,-150.0,0.00012493,2]
[326853445,1715513433080,-523.5,0.00012493,2]
[326853446,1715513433093,-150.0,0.00012493,2]
[326853447,1715513433105,-150.0,0.00012493,2]
[326853448,1715513433117,-150.0,0.00012493,2]
[326853449,1715513433128,-521.18,0.00012493,2]
[326853450,1715513433140,-150.0,0.00012493,2]
[326853451,1715513433152,-300.0,0.00012493,2]
[326853452,1715513433164,-150.0,0.00012493,2]
[326853453,1715513433177,-499.99,0.00012499,2]
[326853454,1715513433189,-12645.13966873,0.000125,2]
[326853456,1715513433201,-152.51,0.00012567,2]
[326853458,1715513433213,-500.0,0.00012602,2]
[326853461,1715513433225,-5154.36909203,0.00012659,6]
[326853463,1715513433240,-1932.1207204,0.00012659,6]
[326853466,1715513433254,-5327.83343388,0.00012659,6]
[326853476,1715513433334,-650.0,0.00012659,6]
[326853491,1715513438661,-155.0,0.00011329,2]
[326853492,1715513438671,-30515.71726316,0.00012659,6]
[326853493,1715513438683,-63156.0,0.00012659,6]
[326853497,1715513438868,-20437.45957246,0.00012659,6]
[326853499,1715513438879,-17936.93518799,0.00012659,6]
[326853502,1715513438890,-4852.6012,0.00012659,6]
[326853504,1715513438901,-114957.45313742,0.00012659,6]
[326853506,1715513438913,-792905.10039266,0.00012659,6]
[326853508,1715513438923,-47188.23867463,0.00012659,6]
[326853513,1715513440547,-303.27304,0.00012659,6]
[326853514,1715513440559,-1641.30252,0.00012659,6]
[326853515,1715513440572,-329.17,0.00012659,6]
[326853516,1715513440746,-6131.5,0.00012659,6]
[326853517,1715513440760,-774.040005,0.00012659,6]
[326853518,1715513440772,-35284.18522708,0.00012659,6]
[326853519,1715513440784,-1750.26163647,0.00012659,6]
[326853532,1715513443376,-84688.41416995,0.00012659,6]
[326853537,1715513443388,-59191.67564887,0.00012659,6]
[326853550,1715513443570,-5269.87768211,0.00012659,6]
[326853551,1715513443583,-38278.52139589,0.00012659,6]
[326853552,1715513443592,-11747.46445765,0.00012659,6]
[326853553,1715513443604,-162.65554235,0.00012659,6]
[326853554,1715513443614,-20850.70690962,0.00012659,6]
[326853555,1715513443626,-926.12701985,0.00012659,6]
[326853556,1715513443637,-20212.97607053,0.00012659,6]
[326853557,1715513443646,-24589.0765872,0.00012659,6]
[326853558,1715513443657,-1892.56313245,0.00012659,6]
[326853559,1715513443668,-508.1055248,0.00012659,6]
[326853560,1715513443776,-451.45712628,0.00012659,6]
[326853561,1715513443788,-463.3999995,0.00012659,6]
[326853562,1715513443799,-1732.275,0.00012659,6]
[326853563,1715513443810,-5893.04789687,0.00012659,6]
[326853564,1715513443822,-621.91316261,0.00012659,6]
[326853565,1715513443833,-6577.31209238,0.00012659,6]
[326853566,1715513443844,-1439.08969512,0.00012659,6]
[326853619,1715513447043,-298.56741175,0.00011969,2]
[326853620,1715513447053,-133.40183837,0.00012041,2]
[326853621,1715513447064,-641.255,0.00012041,2]
[326853622,1715513447076,-94.09316163,0.00012041,2]
[326853623,1715513447085,-201.07032853,0.00012659,6]
[326853624,1715513447096,-790.12443875,0.00012659,6]
[326853627,1715513447107,-255.5202649,0.00012659,6]
[326853629,1715513447118,-17663.0502035,0.00012659,6]
[326853636,1715513447331,-2519.57454711,0.00012659,6]
[326853637,1715513447340,-2521.38527524,0.00012659,6]
[326853638,1715513447352,-4146.64955006,0.00012659,6]
[326853639,1715513447363,-650.65,0.00012659,6]
[326853640,1715513447374,-19041.96657256,0.00012659,6]
[326853641,1715513447385,-629.27928532,0.00012659,6]
[326853642,1715513447396,-687.84128867,0.00012659,6]
[326853643,1715513447444,-1006.8,0.00012659,6]
[326853644,1715513447456,-24134.82427014,0.00012659,6]
[326853645,1715513447467,-392.68632983,0.00012659,6]
[326853651,1715514284135,10000.0,0.00025,120]
[326853659,1715514632573,-155.0,0.00010101,2]
[326853660,1715514632582,-155.0,0.00010101,2]
[326853661,1715514632591,-324.59422712,0.00010101,2]
[326853662,1715514632601,-119.06898791,0.00010102,2]
[326853663,1715514632612,-36.92532744,0.00010102,2]
[326853664,1715514632621,-1063.06077755,0.00010102,2]
[326853665,1715514632630,-4593.23832586,0.00010102,2]
[326853666,1715514632639,-370.82893179,0.00010103,2]
[326853667,1715514632648,-5558.95156203,0.00010103,2]
[326853668,1715514632660,-1213.37270844,0.00010103,2]
[326853669,1715514632671,-10826.21,0.00010104,2]
[326853670,1715514632680,-237.10219524,0.00010204,2]
[326853671,1715514632689,-882.73292549,0.00010205,2]
[326853672,1715514632698,-155.0,0.00010205,2]
[326853673,1715514632710,-3282.0222397,0.00010208,2]
[326853674,1715514632720,-5269.99465171,0.00010208,2]
[326853675,1715514632729,-1500.0,0.0001021,2]
[326853676,1715514632740,-150.99,0.00010298,2]
[326853677,1715514632751,-822.8064618,0.00010399,2]
[326853678,1715514632761,-484.40349237,0.00010399,2]
[326853679,1715514632770,-3420.94188863,0.000104,2]
[326853680,1715514632780,-968.41,0.00010507,2]
[326853681,1715514632790,-200.0,0.00010521,2]
[326853682,1715514632800,-150.0,0.00010532,2]